bitfinex/quotes_ETHUSD_20260216
["timestamp","ask_amount","ask_price","bid_price","bid_amount"]
[1771209359617,0.46046719,1961.6,1961.2,0.001]
[1771209362026,0.0011,1961.6,1961.2,0.001]
[1771209362228,0.0011,1961.6,1961.2,0.47748624]
[1771209362719,0.0011,1961.9,1961.3,0.47648624]
[1771209363419,0.0011,1961.9,1961.4,0.47648624]
[1771209363635,0.0011,1962.2,1961.4,0.47648624]
[1771209363823,0.0011,1962.2,1961.5,0.47648624]
[1771209367907,0.0011,1962.2,1961.4,0.885]
[1771209368232,0.0011,1962.2,1961.4,1.36148624]
[1771209368539,0.0011,1962.2,1961.5,0.47648624]
[1771209371344,0.0011,1962.2,1961.6,0.001]
[1771209371506,0.0011,1962.1,1961.6,0.001]
[1771209371709,0.0011,1962.1,1961.6,0.47748624]
[1771209373552,0.0011,1962.1,1961.6,0.001]
[1771209375542,0.0011,1962.1,1961.6,0.4596485]
[1771209376765,0.0011,1962.1,1961.6,0.001]
[1771209377923,0.49199951,1962.1,1961.6,0.001]
[1771209378760,0.7,1962.0,1961.6,0.001]
[1771209380236,0.0011,1962.1,1961.6,0.001]
[1771209385167,0.0011,1962.1,1961.6,0.4596485]
[1771209385375,0.0011,1962.1,1961.7,0.5095276]
[1771209389585,0.0011,1962.3,1961.8,0.4586485]
[1771209389779,0.0011,1962.3,1962.0,0.4586485]
[1771209389977,0.0011,1962.7,1962.2,0.4586485]
[1771209390183,0.49089951,1963.3,1962.1,0.4586485]
[1771209390579,0.49089951,1963.1,1962.1,0.4586485]
[1771209390757,0.49089951,1963.3,1962.3,0.4586485]
[1771209391162,0.49089951,1963.5,1962.3,0.4586485]
[1771209392670,0.49089951,1963.5,1962.4,0.4586485]
[1771209393383,0.49089951,1963.7,1962.5,0.4586485]
[1771209394974,0.49089951,1963.7,1962.2,0.4586485]
[1771209395179,0.49089951,1963.7,1962.3,0.886]
[1771209395382,0.49089951,1963.7,1962.3,1.3446485]
[1771209395577,0.49089951,1963.2,1962.0,0.91953886]
[1771209395785,0.49089951,1963.2,1962.1,0.4586485]
[1771209398015,0.49089951,1963.2,1962.0,0.91953886]
[1771209399479,0.49089951,1963.2,1962.0,1.37818736]
[1771209399702,1.16189951,1963.1,1962.0,1.37818736]
[1771209399980,1.16189951,1963.1,1962.1,0.4586485]
[1771209400187,0.49089951,1963.0,1962.1,0.4586485]
[1771209405719,0.49089951,1963.0,1962.0,0.91953886]
[1771209406901,0.48699704,1962.9,1962.0,0.00153886]
[1771209407580,0.48699704,1962.6,1962.0,0.00153886]
[1771209407786,1.15699704,1962.9,1962.0,0.00153886]
[1771209407987,0.48699704,1962.8,1962.0,0.00153886]
[1771209408183,0.48699704,1963.2,1962.0,0.47171918]
[1771209408379,1.15799704,1963.1,1962.0,0.47171918]
[1771209409021,1.15799704,1963.3,1962.0,0.47171918]
[1771209409408,1.15799704,1963.3,1962.2,0.001]
[1771209409708,0.0011,1963.1,1962.3,0.47018032]
[1771209409911,0.48699704,1963.0,1962.2,0.001]
[1771209414395,0.48699704,1962.9,1962.2,0.001]
[1771209414595,0.48699704,1962.7,1962.2,0.001]
[1771209415623,0.48699704,1962.7,1962.0,0.00253886]
[1771209418002,9.72923054,1962.7,1962.0,0.00253886]
[1771209418203,0.48699704,1962.6,1962.0,0.00253886]
[1771209421444,2.07499704,1962.8,1962.0,0.47271918]
[1771209422930,0.48699704,1962.7,1962.0,0.00253886]
[1771209423644,0.48699704,1962.6,1961.9,0.001]
[1771209424057,0.48699704,1962.6,1962.1,0.001]
[1771209425634,0.48699704,1962.6,1961.9,0.001]
[1771209425635,0.48699704,1962.5,1961.9,0.001]
[1771209425836,0.48699704,1962.3,1961.7,0.001]
[1771209426045,0.48699704,1962.1,1961.7,0.001]
[1771209427457,0.48699704,1962.0,1961.4,0.001]
[1771209427642,0.48699704,1962.0,1961.2,0.001]
[1771209427866,0.48699704,1961.7,1961.2,0.001]
[1771209428179,0.48699704,1961.6,1961.2,0.001]
[1771209428346,1.18699704,1961.6,1961.2,0.001]
[1771209428543,0.7,1961.6,1961.2,0.001]
[1771209430760,0.675,1962.0,1961.3,0.47118032]
[1771209431467,0.675,1962.3,1961.3,0.47118032]
[1771209432060,0.48699704,1962.8,1961.4,0.47018032]
[1771209432258,0.674,1962.7,1961.4,0.47018032]
[1771209433279,0.7,1962.6,1961.4,0.47018032]
[1771209434053,0.7,1962.6,1961.5,0.46605257]
[1771209435467,1.1752617,1962.6,1961.5,0.46605257]
[1771209436381,0.7,1962.6,1961.5,0.46605257]
[1771209437489,0.7,1962.6,1961.6,0.46605257]
[1771209438370,0.0011,1962.5,1961.6,0.46605257]
[1771209438689,0.0011,1962.5,1961.7,0.46605257]
[1771209439396,0.4752617,1962.3,1961.4,0.001]
[1771209444286,0.4752617,1962.3,1961.4,0.46705257]
[1771209444697,1.1432617,1962.3,1961.4,0.46705257]
[1771209448772,0.9191,1962.5,1961.5,0.46605257]
[1771209450267,0.9191,1962.5,1961.5,0.46705257]
[1771209450510,0.0011,1962.2,1961.5,0.46705257]
[1771209451383,0.0011,1962.2,1961.6,0.46605257]
[1771209452791,0.0011,1962.2,1961.7,0.46605257]
[1771209453496,0.0011,1962.2,1961.9,0.46605257]
[1771209454385,0.0011,1962.5,1961.8,0.46605257]
[1771209455488,0.0011,1962.5,1962.0,0.46605257]
[1771209456818,0.0011,1962.5,1962.2,0.46605257]
[1771209458037,0.0011,1962.5,1962.1,0.86]
[1771209458226,0.0011,1962.5,1962.2,0.46605257]
[1771209459305,0.0011,1962.5,1962.1,0.86]
[1771209460544,0.0011,1962.5,1961.7,0.861]
[1771209462407,0.4763617,1962.5,1961.5,0.001]
[1771209462608,0.4763617,1962.5,1961.8,0.001]
[1771209462835,0.0011,1962.4,1961.8,0.001]
[1771209463034,0.4763617,1962.4,1961.8,0.001]
[1771209465208,0.0011,1962.4,1961.8,0.001]
[1771209465410,0.49856521,1962.4,1961.8,0.001]
[1771209474335,0.0011,1962.4,1961.8,0.001]
[1771209474540,0.49856521,1962.4,1961.8,0.001]
[1771209475455,0.49856521,1962.4,1961.9,0.001]
[1771209475650,0.49856521,1962.3,1961.9,0.001]
[1771209479963,0.0011,1962.3,1961.9,0.001]
[1771209480176,0.49856521,1962.3,1961.9,0.001]
[1771209484428,0.49856521,1962.3,1961.7,0.001]
[1771209484681,0.49856521,1962.3,1961.5,0.001]
[1771209485180,0.49856521,1962.3,1961.5,0.48206425]
[1771209485368,0.0011,1962.3,1961.7,0.48106425]
[1771209485566,0.0011,1962.3,1961.5,0.001]
[1771209485567,0.0011,1962.3,1961.9,0.48106425]
[1771209488355,0.0011,1962.5,1962.0,0.48106425]
[1771209489157,0.0011,1962.7,1962.0,0.48106425]
[1771209492751,0.0011,1962.7,1962.1,0.48106425]
[1771209492953,0.0011,1962.7,1962.2,0.48106425]
[1771209493559,0.0011,1962.7,1962.3,0.47631573]
[1771209499704,0.0011,1962.7,1962.4,0.47631573]
[1771209499872,0.0011,1962.7,1962.6,0.47631573]
[1771209500596,0.00263886,1963.0,1962.6,0.47631573]
[1771209503083,0.0011,1963.1,1962.6,0.47631573]
[1771209503392,0.48779867,1963.1,1962.5,0.858]
[1771209503559,0.48779867,1963.1,1962.2,0.47631573]
[1771209503762,0.48779867,1963.1,1962.0,0.47785459]
[1771209504081,0.48779867,1963.1,1962.0,0.86353886]
[1771209504286,0.48779867,1963.1,1962.1,0.47631573]
[1771209507724,0.0011,1963.1,1962.2,0.47631573]
[1771209507874,0.0011,1963.1,1962.3,0.47631573]
[1771209508079,0.0011,1963.1,1962.5,0.47631573]
[1771209510004,0.0011,1963.1,1962.4,0.866]
[1771209510005,0.48779867,1963.1,1962.4,0.866]
[1771209511285,0.48779867,1963.1,1962.0,0.00153886]
[1771209512496,0.48669867,1963.0,1962.0,0.00153886]
[1771209512699,0.48669867,1963.0,1962.5,0.001]
[1771209512894,0.48669867,1963.0,1962.0,0.00153886]
[1771209513103,0.48779867,1963.0,1962.0,0.00153886]
[1771209513408,0.48779867,1963.0,1962.4,0.001]
[1771209514900,0.48779867,1963.0,1962.2,0.001]
[1771209514901,0.48669867,1962.6,1962.0,0.00153886]
[1771209515398,0.0011,1963.0,1962.1,0.47631573]
[1771209515579,0.48779867,1963.0,1962.0,0.00153886]
[1771209515985,0.48779867,1963.0,1962.0,0.47785459]
[1771209516820,0.48779867,1963.0,1962.0,0.00153886]
[1771209518522,0.48779867,1963.0,1962.0,0.47785459]
[1771209518740,0.48779867,1963.0,1962.1,0.52703368]
[1771209518894,0.0011,1963.0,1962.1,0.52703368]
[1771209519210,0.0011,1963.0,1962.1,0.47631573]
[1771209519820,0.0011,1963.0,1962.0,0.00153886]
[1771209519821,0.48779867,1963.0,1962.0,0.00153886]
[1771209522727,0.48779867,1963.0,1962.0,0.47785459]
[1771209523837,0.48779867,1963.0,1962.0,0.00153886]
[1771209523986,0.48420646,1962.9,1962.0,0.00153886]
[1771209524191,0.48420646,1962.7,1962.0,0.00153886]
[1771209525489,0.48420646,1962.7,1962.1,0.001]
[1771209527330,0.4877431,1962.6,1962.1,0.001]
[1771209530629,0.659,1962.5,1962.1,0.001]
[1771209531017,0.4877431,1962.4,1962.1,0.001]
[1771209531216,0.4877431,1962.4,1961.8,0.001]
[1771209531432,0.4877431,1962.4,1961.7,0.001]
[1771209531617,0.4877431,1962.2,1961.4,0.001]
[1771209531928,0.18685624,1962.3,1961.4,0.001]
[1771209531929,0.4877431,1962.0,1961.4,0.001]
[1771209537302,0.28925624,1962.2,1961.4,0.001]
[1771209537502,0.663,1962.0,1961.4,0.001]
[1771209537818,0.663,1962.0,1961.6,0.001]
[1771209538022,0.664,1962.1,1961.6,0.001]
[1771209538535,0.0011,1961.9,1961.6,0.001]
[1771209541670,0.0011,1961.9,1961.4,0.001]
[1771209542466,0.4888431,1961.9,1961.4,0.001]
[1771209543778,0.5901431,1961.8,1961.2,0.001]
[1771209544232,0.1035,1961.9,1961.2,0.001]
[1771209544566,0.662,1961.8,1961.2,0.47324913]
[1771209546166,0.0011,1961.9,1961.2,0.47324913]
[1771209546729,0.4888431,1961.9,1961.2,0.001]
[1771209547831,0.4877431,1961.8,1961.2,0.001]
[1771209548636,0.0011,1961.9,1961.2,0.001]
[1771209548960,0.0011,1961.9,1961.2,0.47324913]
[1771209549265,0.6641,1961.9,1961.2,0.001]
[1771209549453,1.1518431,1961.9,1961.2,0.001]
[1771209550435,0.6641,1961.9,1961.3,0.001]
[1771209550745,0.0011,1961.8,1961.3,0.001]
[1771209554580,0.0011,1961.8,1961.3,0.49699211]
[1771209564774,0.0011,1961.8,1961.3,0.001]
[1771209565672,0.4913026,1961.8,1961.2,0.001]
[1771209566968,0.0011,1961.8,1961.2,0.001]
[1771209569399,0.0011,1961.8,1961.2,0.49699211]
[1771209570382,0.4913026,1961.8,1961.2,0.001]
[1771209571282,0.4913026,1961.8,1960.9,0.001]
[1771209571283,0.4902026,1961.5,1960.9,0.001]
[1771209571484,0.656,1961.5,1960.9,0.001]
[1771209574413,0.7584,1961.7,1960.9,0.49699211]
[1771209574714,1.2486026,1961.7,1961.3,0.001]
[1771209575011,1.2497026,1961.7,1961.3,0.001]
[1771209575508,0.4902026,1961.6,1961.0,0.001]
[1771209575700,0.7595,1961.7,1961.0,0.001]
[1771209576006,1.2497026,1961.7,1961.0,0.001]
[1771209580715,0.6571,1961.7,1961.0,0.54796876]
[1771209580909,0.6571,1961.7,1961.0,0.49699211]
[1771209582121,0.0011,1961.7,1961.0,0.49699211]
[1771209582412,0.0011,1961.7,1961.2,0.49599211]
[1771209586792,0.0011,1961.6,1961.2,0.49599211]
[1771209593225,0.0011,1961.6,1961.0,0.48904109]
[1771209598729,0.0011,1961.6,1961.2,0.48804109]
[1771209599027,0.0011,1961.5,1961.2,0.48804109]
[1771209600131,0.0011,1961.5,1961.1,0.001]
[1771209600510,0.0011,1961.5,1961.2,0.48804109]
[1771209600833,0.0011,1961.5,1961.4,0.48804109]
[1771209603219,0.0011,1961.5,1961.2,0.828]
[1771209603737,0.0011,1961.5,1961.1,0.001]
[1771209603910,0.48438641,1961.5,1961.1,0.001]
[1771209604512,0.48328641,1961.3,1961.1,0.001]
[1771209605530,0.48328641,1961.3,1960.9,0.001]
[1771209607057,0.48438641,1961.5,1960.9,0.001]
[1771209607208,0.0011,1961.5,1960.9,0.48904109]
[1771209609856,0.0011,1961.5,1961.1,0.48804109]
[1771209610355,0.0011,1961.5,1961.2,0.53903025]
[1771209610652,0.0011,1961.4,1961.2,0.53903025]
[1771209613562,0.0011,1961.4,1961.2,0.48804109]
[1771209613955,0.0011,1961.4,1961.3,0.50492276]
[1771209614157,0.0011,1961.6,1961.3,0.50492276]
[1771209620839,0.0011,1961.8,1961.3,0.05098136]
[1771209621064,0.0011,1961.8,1961.4,0.4539414]
[1771209622274,0.0011,1961.5,1961.4,0.4539414]
[1771209623057,0.0011,1961.5,1961.3,0.05098136]
[1771209625881,0.0011,1961.5,1961.3,7.85548232]
[1771209626462,0.0011,1961.5,1961.3,8.30942372]
[1771209629359,0.0011,1961.8,1961.4,0.4539414]
[1771209629677,0.0011,1961.8,1961.5,9.16141852]
[1771209630176,0.0011,1961.8,1961.5,8.70747712]
[1771209630348,0.0011,1961.8,1961.5,8.65650096]
[1771209631680,0.0011,1961.8,1961.5,9.11044236]
[1771209631862,0.0011,1961.8,1961.5,8.65650096]
[1771209632285,0.47653992,1961.8,1961.5,0.852]
[1771209634082,0.0011,1961.8,1961.5,0.852]
[1771209634783,0.0011,1961.7,1961.4,0.001]
[1771209637687,0.47653992,1961.7,1961.4,0.001]
[1771209638387,0.0011,1961.7,1961.4,0.001]
[1771209643260,0.0011,1961.7,1961.4,0.4549414]
[1771209644170,0.48024631,1961.7,1961.4,0.001]
[1771209644468,0.48024631,1961.7,1961.4,0.865]
[1771209646192,0.0011,1961.7,1961.4,0.865]
[1771209646594,0.0011,1961.7,1961.5,0.001]
[1771209657104,0.4951345,1961.7,1961.5,0.001]
[1771209658081,0.4940345,1961.6,1961.3,0.001]
[1771209658717,0.4951345,1961.6,1961.3,0.001]
[1771209658926,0.4951345,1961.6,1961.5,0.001]
[1771209659093,0.4951345,1961.6,1961.3,0.001]
[1771209659288,0.4951345,1961.6,1961.1,0.001]
[1771209659527,0.4940345,1961.4,1961.1,0.001]
[1771209660602,0.4940345,1961.4,1961.1,0.002]
[1771209660794,1.1381345,1961.6,1961.1,0.002]
[1771209661195,1.1381345,1961.6,1961.2,0.001]
[1771209662026,1.1381345,1961.6,1961.1,0.001]
[1771209662197,0.0011,1961.6,1961.2,0.001]
[1771209662534,0.0011,1961.6,1961.2,1.35161705]
[1771209662735,0.0011,1961.6,1961.3,0.001]
[1771209663192,0.4951345,1961.6,1961.3,0.001]
[1771209665541,0.0011,1961.6,1961.3,0.001]
[1771209665837,0.0011,1961.6,1961.4,0.001]
[1771209666124,0.0011,1961.6,1961.2,0.001]
[1771209666632,0.0011,1961.6,1961.1,8.2834045]
[1771209666843,0.0011,1961.6,1961.2,0.001]
[1771209668114,0.4951345,1961.6,1961.3,0.001]
[1771209668431,0.4951345,1961.6,1961.2,0.001]
[1771209668598,0.4951345,1961.6,1961.1,0.001]
[1771209668799,0.4940345,1961.4,1961.1,0.002]
[1771209670198,0.4940345,1961.4,1961.3,0.001]
[1771209674326,0.4940345,1961.4,1961.1,0.001]
[1771209674527,0.48329445,1961.2,1961.0,0.001]
[1771209674705,1.13629445,1961.2,1960.7,0.919]
[1771209674907,0.48329445,1961.1,1960.7,0.919]
[1771209675399,0.48329445,1961.1,1960.7,0.001]
[1771209675604,0.48329445,1961.0,1960.7,0.001]
[1771209675914,0.48329445,1961.0,1960.2,0.874]
[1771209676518,0.48329445,1961.0,1960.3,0.49340368]
[1771209676831,0.653,1961.2,1960.6,0.49340368]
[1771209679133,1.13629445,1961.2,1960.4,0.49340368]
[1771209680311,0.48329445,1961.1,1960.4,0.49340368]
[1771209681430,8.2890819,1961.1,1960.4,0.49340368]
[1771209681735,0.48329445,1960.8,1960.2,0.874]
[1771209682513,0.48329445,1960.8,1960.5,0.001]
[1771209685331,0.658,1960.9,1960.5,0.001]
[1771209686740,0.48329445,1960.8,1960.5,0.001]
[1771209687828,8.2890819,1960.7,1960.5,0.001]
[1771209688523,0.48329445,1960.6,1960.2,0.001]
[1771209688722,8.2890819,1961.0,1960.2,0.49440368]
[1771209688934,0.662,1960.9,1960.3,7.80578745]
[1771209689125,0.662,1961.0,1960.4,0.49340368]
[1771209690947,0.662,1961.1,1960.4,0.49340368]
[1771209691441,7.80578745,1961.0,1960.3,0.49340368]
[1771209691641,0.662,1961.1,1960.3,0.49340368]
[1771209691860,0.662,1961.1,1960.5,0.49340368]
[1771209692030,0.662,1961.1,1960.7,0.49340368]
[1771209693019,0.662,1961.4,1960.7,0.49340368]
[1771209693348,1.14529445,1961.4,1960.7,0.49340368]
[1771209694252,1.14529445,1961.4,1960.6,8.68178745]
[1771209694463,1.14529445,1961.4,1960.6,9.17519113]
[1771209695153,0.001,1961.1,1960.6,9.17519113]
[1771209695650,0.001,1961.1,1960.5,0.0011]
[1771209695862,0.001,1961.1,1960.5,0.49450368]
[1771209696434,0.001,1961.1,1960.6,0.49340368]
[1771209701549,0.001,1961.1,1960.5,0.0011]
[1771209702171,0.001,1961.1,1960.5,0.49450368]
[1771209702373,0.48429445,1961.1,1960.5,0.0011]
[1771209702564,0.48429445,1961.1,1960.5,0.8811]
[1771209705648,0.48429445,1961.1,1960.5,0.0011]
[1771209707447,0.001,1961.1,1960.6,0.001]
[1771209710360,0.001,1961.1,1960.6,0.47849236]
[1771209710561,0.001,1961.1,1960.7,0.47749236]
[1771209710792,0.001,1961.1,1960.8,0.47749236]
[1771209711885,0.0011,1961.3,1960.8,0.47749236]
[1771209713893,0.0011,1961.3,1960.7,1.35449236]
[1771209714163,0.0011,1961.3,1960.8,0.47749236]
[1771209716800,0.0011,1961.3,1960.9,0.47749236]
[1771209719095,0.0011,1961.3,1961.0,0.47749236]
[1771209719614,0.0011,1961.3,1961.1,1.36149236]
[1771209720108,0.0011,1961.2,1961.1,1.36149236]
[1771209720308,0.0011,1961.4,1961.2,0.47749236]
[1771209720517,0.0011,1961.6,1961.2,0.47749236]
[1771209721800,0.0011,1961.6,1961.1,0.884]
[1771209722591,0.47932053,1961.6,1960.9,8.28518731]
[1771209722796,0.47932053,1961.6,1961.0,0.886]
[1771209726313,0.47932053,1961.6,1960.7,0.919]
[1771209730788,0.47932053,1961.6,1960.7,0.001]
[1771209731701,0.47932053,1961.6,1960.8,0.001]
[1771209731893,0.47822053,1961.4,1960.8,0.001]
[1771209741642,0.47822053,1961.4,1960.8,0.49539506]
[1771209741978,0.47822053,1961.4,1960.8,0.001]
[1771209743456,0.47822053,1961.4,1960.9,0.001]
[1771209743752,0.0011,1961.5,1960.9,0.54624801]
[1771209746836,0.0011,1961.5,1961.0,0.49439506]
[1771209747842,0.0011,1961.5,1961.2,0.49439506]
[1771209749159,0.0011,1961.5,1961.1,0.05084776]
[1771209749622,0.0011,1961.5,1961.1,0.54524282]
[1771209750927,0.0011,1961.5,1961.1,0.49439506]
[1771209751854,0.0011,1961.5,1961.0,0.05084776]
[1771209752023,0.0011,1961.5,1961.0,0.54524282]
[1771209755128,0.0011,1961.4,1961.0,0.54524282]
[1771209757432,0.0011,1961.5,1961.2,0.49439506]
[1771209759150,0.0011,1961.5,1961.2,0.54523763]
[1771209765467,0.0011,1961.5,1961.1,0.92985161]
[1771209765656,0.0011,1961.5,1961.1,1.38941749]
[1771209766360,0.0011,1961.5,1961.1,1.39541749]
[1771209766666,0.46196381,1961.5,1961.0,0.885]
[1771209767757,0.46196381,1961.5,1961.1,0.001]
[1771209767954,0.0011,1961.4,1961.1,0.001]
[1771209768465,0.0011,1961.6,1961.1,0.001]
[1771209768466,0.0011,1961.6,1961.3,0.45956588]
[1771209768641,0.0011,1961.6,1961.4,0.51042331]
[1771209768841,0.0011,1961.6,1961.4,0.45956588]
[1771209769069,0.0011,1961.6,1961.3,0.05085743]
[1771209769441,0.0011,1961.6,1961.3,0.51042331]
[1771209770884,0.0011,1961.6,1961.4,7.80820293]
[1771209771171,0.0011,1961.6,1961.5,0.05085224]
[1771209771341,0.0011,1961.6,1961.4,8.74905517]
[1771209775846,0.0011,1961.8,1961.5,0.45956588]
[1771209776045,0.00263886,1962.0,1961.6,7.85904998]
[1771209776248,0.00263886,1962.0,1961.6,8.31861586]
[1771209776452,0.00263886,1962.0,1961.7,0.899]
[1771209776965,0.46350267,1962.0,1961.6,0.9]
[1771209777865,0.46350267,1962.0,1961.4,0.9]
[1771209778046,0.46350267,1962.0,1961.4,0.95087866]
[1771209779954,0.46350267,1962.0,1961.4,0.95187866]
[1771209780162,0.0011,1961.9,1961.4,0.95187866]
[1771209780867,0.0011,1961.9,1961.6,7.80820293]
[1771209781062,0.0011,1961.9,1961.6,8.26776881]
[1771209781459,0.0011,1961.9,1961.7,0.901]
[1771209784683,0.0011,1961.9,1961.7,1.36056588]
[1771209784866,0.0011,1962.1,1961.8,8.26776881]
[1771209785464,0.0011,1962.1,1961.7,0.901]
[1771209785664,0.46196381,1962.1,1961.7,0.901]
[1771209785982,0.46196381,1962.1,1961.6,0.907]
[1771209787058,0.46086381,1962.0,1961.6,0.907]
[1771209789182,0.0011,1962.1,1961.6,0.907]
[1771209790079,0.0011,1962.1,1961.6,1.36656588]
[1771209790379,0.0011,1962.1,1961.6,0.907]
[1771209790560,0.0011,1962.1,1961.7,0.45956588]
[1771209792474,0.0011,1962.1,1961.7,0.46056588]
[1771209792665,0.0011,1961.9,1961.7,0.46056588]
[1771209796169,0.0011,1961.9,1961.7,0.001]
[1771209796371,0.0011,1961.9,1961.7,0.47564103]
[1771209799096,0.0011,1961.9,1961.8,0.47464103]
[1771209801066,0.0011,1962.0,1961.8,0.47464103]
[1771209801261,0.0011,1962.0,1961.9,0.913]
[1771209802597,0.0011,1962.2,1961.9,1.38764103]
[1771209802799,0.0011,1962.2,1961.9,0.913]
[1771209805395,0.0011,1962.2,1961.9,0.914]
[1771209805591,0.0011,1962.1,1961.9,0.914]
[1771209806787,0.0011,1962.1,1961.9,1.38864103]
[1771209807660,0.0011,1962.4,1962.0,0.47464103]
[1771209808065,0.49520189,1962.4,1961.9,0.914]
[1771209810770,0.0011,1962.4,1961.9,1.38864103]
[1771209811072,0.0011,1962.4,1962.0,0.47464103]
[1771209811279,0.0011,1962.4,1962.0,8.27529101]
[1771209813306,0.0011,1962.9,1962.3,0.47464103]
[1771209813479,0.49520189,1962.9,1962.4,8.72164998]
[1771209813803,0.49520189,1962.9,1962.4,0.921]
[1771209817582,0.0011,1962.9,1962.4,1.39564103]
[1771209817789,0.0011,1962.9,1962.5,0.47464103]
[1771209818021,0.0011,1962.9,1962.4,0.921]
[1771209818792,0.0011,1962.8,1962.4,0.921]
[1771209819224,0.49520189,1962.8,1962.4,0.921]
[1771209820290,0.49520189,1962.8,1962.1,7.80064998]
[1771209820492,0.49520189,1962.8,1962.2,0.926]
[1771209822116,0.49410189,1962.7,1962.2,0.926]
[1771209823630,7.80195317,1962.8,1962.2,0.926]
[1771209823631,0.47292686,1962.8,1962.2,0.926]
[1771209825018,0.47292686,1962.8,1962.2,9.21459262]
[1771209825603,0.0011,1962.8,1962.2,9.21459262]
[1771209825810,0.0011,1962.8,1962.3,0.49056961]
[1771209831005,0.0011,1962.8,1962.4,0.001]
[1771209831406,0.0011,1962.8,1962.6,0.49056961]
[1771209833102,0.0011,1962.8,1962.5,0.932]
[1771209835132,0.49257774,1962.8,1962.4,0.001]
[1771209835342,0.49257774,1962.8,1962.5,0.937]
[1771209835513,0.49257774,1962.8,1962.4,0.001]
[1771209841025,0.49147774,1962.6,1962.3,0.001]
[1771209841231,0.49147774,1962.6,1962.1,0.001]
[1771209841752,0.49147774,1962.4,1962.1,0.001]
[1771209842448,7.80085317,1962.5,1962.1,0.001]
[1771209842642,0.49147774,1962.5,1962.1,0.001]
[1771209843031,0.49147774,1962.4,1962.1,0.001]
[1771209844051,0.49147774,1962.4,1962.3,0.001]
[1771209844452,0.49147774,1962.6,1962.3,0.001]
[1771209849845,0.6451,1962.7,1962.3,0.001]
[1771209850225,0.0011,1962.7,1962.3,0.001]
[1771209850426,0.0011,1962.7,1962.3,0.49156961]
[1771209851028,0.49257774,1962.7,1962.3,0.001]
[1771209851941,0.0011,1962.7,1962.3,0.001]
[1771209854570,0.0011,1962.7,1962.4,0.49897922]
[1771209855266,0.0011,1962.7,1962.3,0.001]
[1771209855464,0.0011,1962.7,1962.3,0.49997922]
[1771209855670,0.0011,1962.7,1962.4,0.001]
[1771209856036,0.0011,1962.6,1962.4,0.49997922]
[1771209859268,0.0011,1962.6,1962.4,0.001]
[1771209862474,0.45398621,1962.6,1962.1,0.001]
[1771209862646,0.45398621,1962.6,1962.1,0.002]
[1771209865977,0.45288621,1962.4,1962.1,0.001]
[1771209867963,0.45288621,1962.2,1962.1,0.001]
[1771209869070,0.45288621,1962.4,1962.1,0.001]
[1771209869293,8.45295317,1962.5,1962.2,0.001]
[1771209869294,0.6521,1962.5,1962.2,0.001]
[1771209869988,0.0011,1962.5,1962.2,0.001]
[1771209870496,0.45288621,1962.4,1962.1,0.001]
[1771209870657,0.45288621,1962.2,1961.8,0.001]
[1771209870863,8.25373938,1962.0,1961.7,0.001]
[1771209871191,0.655,1962.3,1961.7,0.001]
[1771209871192,0.45288621,1962.1,1961.7,0.001]
[1771209872200,1.10788621,1962.3,1961.7,0.001]
[1771209874283,0.655,1962.3,1961.7,0.49997922]
[1771209880000,0.655,1962.3,1961.8,0.001]
[1771209880301,0.0011,1962.2,1961.8,0.001]
[1771209885909,0.0011,1962.2,1961.7,0.45097922]
[1771209886074,0.46655881,1962.2,1961.6,0.001]
[1771209886476,7.80301488,1962.1,1961.6,0.001]
[1771209886778,0.46545881,1962.0,1961.6,0.001]
[1771209891893,0.46545881,1962.0,1961.7,0.001]
[1771209898831,0.46545881,1961.8,1961.5,0.001]
[1771209899029,7.80301488,1961.9,1961.5,0.001]
[1771209899030,0.46545881,1961.6,1961.5,0.001]
[1771209899342,0.46545881,1961.5,1961.1,0.001]
[1771209900519,0.663,1961.9,1961.2,0.45504953]
[1771209900732,0.663,1961.9,1961.3,8.25806441]
[1771209900936,0.663,1961.9,1961.4,0.45504953]
[1771209901101,0.663,1962.1,1961.4,0.45504953]
[1771209902229,1.12955881,1962.2,1961.4,0.45504953]
[1771209902622,0.46545881,1962.1,1961.4,0.45504953]
[1771209903409,0.46545881,1962.1,1961.5,0.001]
[1771209903628,0.46545881,1962.1,1961.5,0.45604953]
[1771209903808,0.6641,1962.2,1961.5,0.45604953]
[1771209904328,0.0011,1961.9,1961.5,0.45604953]
[1771209905117,0.0011,1961.9,1961.5,0.001]
[1771209912039,0.46655881,1961.9,1961.5,0.001]
[1771209912244,0.46545881,1961.7,1961.5,0.001]
[1771209912442,0.46545881,1961.7,1961.4,0.001]
[1771209912642,0.46545881,1961.5,1961.2,0.001]
[1771209914649,0.46029002,1961.3,1961.0,0.00253886]
[1771209914853,8.2633049,1961.2,1961.0,0.00253886]
[1771209915945,0.46029002,1960.9,1960.7,0.001]
[1771209916716,1.12729002,1961.1,1960.7,0.001]
[1771209916919,0.669,1961.3,1960.7,0.48398985]
[1771209917528,0.669,1961.3,1961.1,0.001]
[1771209918744,0.46029002,1961.6,1961.1,0.001]
[1771209918917,0.669,1961.5,1961.1,0.001]
[1771209926845,1.12929002,1961.5,1961.1,0.001]
[1771209927929,0.669,1961.5,1961.1,0.48398985]
[1771209928259,0.669,1961.5,1961.1,0.001]
[1771209929856,0.46139002,1961.4,1961.1,0.001]
[1771209930431,0.0011,1961.4,1961.1,0.001]
[1771209936757,0.0011,1961.4,1961.1,0.48398985]
[1771209938337,0.0011,1961.4,1961.1,0.001]
[1771209939446,0.0011,1961.4,1961.1,0.48398985]
[1771209939835,0.0011,1961.5,1961.4,0.48298985]
[1771209940059,0.0011,1961.5,1961.3,0.48298985]
[1771209940282,0.0011,1961.7,1961.3,0.48298985]
[1771209940438,0.0011,1961.7,1961.5,0.48298985]
[1771209942385,0.0011,1961.6,1961.5,0.48298985]